[Event "Titled Tuesday Blitz June 28 Early 2022"]
[White "Dudzinski, Pawel"]
[Black "Djokic, Mihailo"]
[WhiteFideId "1117890"]
[BlackFideId "976440"]
[WhiteElo "2011"]
[BlackElo "2255"]
[Result "0-1"]
[Round "01"]
[TimeControl "180+1"]
[Date "2022.06.28"]
[WhiteClock "0:00:05"]
[BlackClock "0:01:01"]

1. e4 {[%clk 0:02:58]}  c5 {[%clk 0:03:00]} 2. c4 {[%clk 0:02:55]}  Nc6 {[%clk 0:02:59]} 3. Nc3 {[%clk 0:02:55]}  g6 {[%clk 0:02:59]} 4. g3 {[%clk 0:02:56]}  Bg7 {[%clk 0:03:00]} 5. Bg2 {[%clk 0:02:56]}  d6 {[%clk 0:03:00]} 6. Rb1 {[%clk 0:02:57]}  e6 {[%clk 0:02:59]} 7. Nge2 {[%clk 0:02:56]}  Nge7 {[%clk 0:02:59]} 8. a3 {[%clk 0:02:56]}  O-O {[%clk 0:03:00]} 9. b4 {[%clk 0:02:52]}  b6 {[%clk 0:02:56]} 10. O-O {[%clk 0:02:49]}  Bb7 {[%clk 0:02:53]} 11. d3 {[%clk 0:02:35]}  Qd7 {[%clk 0:02:52]} 12. b5 {[%clk 0:02:04]}  Nd4 {[%clk 0:02:52]} 13. Nxd4 {[%clk 0:02:04]}  Bxd4 {[%clk 0:02:51]} 14. Ne2 {[%clk 0:02:05]}  Bg7 {[%clk 0:02:51]} 15. Bb2 {[%clk 0:02:03]}  d5 {[%clk 0:02:47]} 16. Bxg7 {[%clk 0:01:56]}  Kxg7 {[%clk 0:02:48]} 17. exd5 {[%clk 0:01:49]}  exd5 {[%clk 0:02:47]} 18. Nf4 {[%clk 0:01:16]}  Rad8 {[%clk 0:02:20]} 19. Re1 {[%clk 0:00:48]}  dxc4 {[%clk 0:02:18]} 20. dxc4 {[%clk 0:00:45]}  Bxg2 {[%clk 0:02:16]} 21. Qxd7 {[%clk 0:00:20]}  Rxd7 {[%clk 0:02:15]} 22. Kxg2 {[%clk 0:00:21]}  Rfd8 {[%clk 0:02:15]} 23. Re2 {[%clk 0:00:19]}  g5 {[%clk 0:02:03]} 24. Rbe1 {[%clk 0:00:18]}  Nf5 {[%clk 0:01:40]} 25. Nd5 {[%clk 0:00:16]}  Nd6 {[%clk 0:01:38]} 26. Ne3 {[%clk 0:00:14]}  Kf8 {[%clk 0:01:28]} 27. Rf1 {[%clk 0:00:12]}  Re8 {[%clk 0:01:25]} 28. Rd2 {[%clk 0:00:08]}  Red8 {[%clk 0:01:23]} 29. Rfd1 {[%clk 0:00:08]}  Ke8 {[%clk 0:01:20]} 30. f3 {[%clk 0:00:07]}  Nf5 {[%clk 0:01:11]} 31. Nd5 {[%clk 0:00:04]}  Rxd5 {[%clk 0:01:09]} 32. cxd5 {[%clk 0:00:04]}  Ne3+ {[%clk 0:01:09]} 33. Kf2 {[%clk 0:00:05]}  Nxd1+ {[%clk 0:01:09]} 34. Rxd1 {[%clk 0:00:06]}  Kd7 {[%clk 0:01:08]} 35. Ke3 {[%clk 0:00:07]}  Kd6 {[%clk 0:01:08]} 36. Ke4 {[%clk 0:00:08]}  c4 {[%clk 0:01:02]} 37. Kf5 {[%clk 0:00:08]}  Kc5 {[%clk 0:01:00]} 38. Kxg5 {[%clk 0:00:08]}  Rxd5+ {[%clk 0:01:00]} 39. Rxd5+ {[%clk 0:00:06]}  Kxd5 {[%clk 0:01:01]} 40. Kf4 {[%clk 0:00:05]}  Kd4 {[%clk 0:01:01]} 0-1


[Site "https://www.chess.com"]

[Event "Titled Tuesday Blitz June 28 Early 2022"]
[White "Estrada Nieto, Julian"]
[Black "Nasuta, Grzegorz"]
[WhiteFideId "5101018"]
[BlackFideId "1141686"]
[WhiteElo "2252"]
[BlackElo "2366"]
[Result "1-0"]
[Round "01"]
[TimeControl "180+1"]
[Date "2022.06.28"]
[WhiteClock "0:01:08"]
[BlackClock "0:01:15"]

1. e4 {[%clk 0:03:00]}  g6 {[%clk 0:02:59]} 2. d4 {[%clk 0:03:00]}  Bg7 {[%clk 0:02:59]} 3. Nf3 {[%clk 0:03:00]}  d6 {[%clk 0:03:00]} 4. Nc3 {[%clk 0:03:01]}  e6 {[%clk 0:02:58]} 5. Be2 {[%clk 0:02:59]}  Ne7 {[%clk 0:02:59]} 6. Bf4 {[%clk 0:02:57]}  Nd7 {[%clk 0:02:58]} 7. Qd2 {[%clk 0:02:56]}  h6 {[%clk 0:02:59]} 8. h4 {[%clk 0:02:55]}  b6 {[%clk 0:02:58]} 9. O-O {[%clk 0:02:55]}  Bb7 {[%clk 0:02:58]} 10. Rfe1 {[%clk 0:02:55]}  a6 {[%clk 0:02:59]} 11. a4 {[%clk 0:02:55]}  Kf8 {[%clk 0:02:59]} 12. Rad1 {[%clk 0:02:53]}  Kg8 {[%clk 0:02:59]} 13. Bd3 {[%clk 0:02:52]}  e5 {[%clk 0:02:55]} 14. dxe5 {[%clk 0:02:50]}  Nxe5 {[%clk 0:02:53]} 15. Nxe5 {[%clk 0:02:41]}  dxe5 {[%clk 0:02:53]} 16. Bg3 {[%clk 0:02:41]}  Kh7 {[%clk 0:02:48]} 17. h5 {[%clk 0:02:40]}  Qd6 {[%clk 0:02:41]} 18. Bc4 {[%clk 0:02:37]}  Qf6 {[%clk 0:02:38]} 19. Qd7 {[%clk 0:02:23]}  Rac8 {[%clk 0:02:28]} 20. hxg6+ {[%clk 0:02:20]}  fxg6 {[%clk 0:02:26]} 21. Qe6 {[%clk 0:02:13]}  Qxe6 {[%clk 0:02:24]} 22. Bxe6 {[%clk 0:02:12]}  Rcd8 {[%clk 0:02:25]} 23. Nd5 {[%clk 0:02:10]}  Rd6 {[%clk 0:01:44]} 24. Nxc7 {[%clk 0:02:09]}  Rc6 {[%clk 0:01:45]} 25. Rd7 {[%clk 0:02:06]}  Bf6 {[%clk 0:01:45]} 26. Bd5 {[%clk 0:02:04]}  Rc8 {[%clk 0:01:38]} 27. Bxc6 {[%clk 0:01:57]}  Bxc6 {[%clk 0:01:38]} 28. Rd6 {[%clk 0:01:57]}  Kg7 {[%clk 0:01:30]} 29. Ne6+ {[%clk 0:01:44]}  Kf7 {[%clk 0:01:30]} 30. Nd8+ {[%clk 0:01:43]}  Kg7 {[%clk 0:01:31]} 31. Nxc6 {[%clk 0:01:42]}  Nxc6 {[%clk 0:01:31]} 32. Rd7+ {[%clk 0:01:40]}  Kg8 {[%clk 0:01:29]} 33. c3 {[%clk 0:01:41]}  Na5 {[%clk 0:01:28]} 34. Rd6 {[%clk 0:01:36]}  Bd8 {[%clk 0:01:27]} 35. Rxg6+ {[%clk 0:01:35]}  Kh7 {[%clk 0:01:26]} 36. Re6 {[%clk 0:01:33]}  Nc4 {[%clk 0:01:27]} 37. b3 {[%clk 0:01:32]}  Nd2 {[%clk 0:01:27]} 38. Bxe5 {[%clk 0:01:24]}  Nxb3 {[%clk 0:01:28]} 39. Re3 {[%clk 0:01:23]}  Nc5 {[%clk 0:01:21]} 40. Rd6 {[%clk 0:01:17]}  Bc7 {[%clk 0:01:15]} 41. Rc6 {[%clk 0:01:08]} 1-0


[Site "https://www.chess.com"]

[Event "Titled Tuesday Blitz June 28 Early 2022"]
[White "Garcia Cuenca, Victor"]
[Black "Atabayev, Saparmyrat"]
[WhiteFideId "2250829"]
[BlackFideId "14000571"]
[WhiteElo "2317"]
[BlackElo "2483"]
[Result "0-1"]
[Round "01"]
[TimeControl "180+1"]
[Date "2022.06.28"]
[WhiteClock "0:01:08"]
[BlackClock "0:01:52"]

1. d4 {[%clk 0:03:00]}  d5 {[%clk 0:02:59]} 2. Nf3 {[%clk 0:02:57]}  Nf6 {[%clk 0:02:59]} 3. e3 {[%clk 0:02:58]}  Bf5 {[%clk 0:02:58]} 4. c4 {[%clk 0:02:58]}  e6 {[%clk 0:02:59]} 5. Nc3 {[%clk 0:02:59]}  Bb4 {[%clk 0:02:57]} 6. Qa4+ {[%clk 0:02:55]}  Nc6 {[%clk 0:02:56]} 7. Ne5 {[%clk 0:02:55]}  O-O {[%clk 0:02:52]} 8. Nxc6 {[%clk 0:02:53]}  Bxc3+ {[%clk 0:02:52]} 9. bxc3 {[%clk 0:02:54]}  bxc6 {[%clk 0:02:46]} 10. Qxc6 {[%clk 0:02:43]}  Rb8 {[%clk 0:02:38]} 11. Ba3 {[%clk 0:02:40]}  Re8 {[%clk 0:02:35]} 12. Be2 {[%clk 0:02:40]}  Ne4 {[%clk 0:02:19]} 13. cxd5 {[%clk 0:02:31]}  Rb6 {[%clk 0:02:17]} 14. Qa4 {[%clk 0:02:14]}  Nxc3 {[%clk 0:02:07]} 15. Qxa7 {[%clk 0:02:05]}  Nxe2 {[%clk 0:02:04]} 16. Kxe2 {[%clk 0:02:06]}  Qxd5 {[%clk 0:02:04]} 17. Qxc7 {[%clk 0:01:48]}  Rc6 {[%clk 0:02:02]} 18. Qe5 {[%clk 0:01:10]}  Rc2+ {[%clk 0:01:56]} 19. Kd1 {[%clk 0:01:08]}  Qxg2 {[%clk 0:01:52]} 0-1


[Site "https://www.chess.com"]

[Event "Titled Tuesday Blitz June 28 Early 2022"]
[White "Garv Gaur"]
[Black "Terry, Renato"]
[WhiteFideId "45030839"]
[BlackFideId "3803457"]
[WhiteElo "1950"]
[BlackElo "2577"]
[Result "0-1"]
[Round "01"]
[TimeControl "180+1"]
[Date "2022.06.28"]
[WhiteClock "0:00:03"]
[BlackClock "0:00:07"]

1. d4 {[%clk 0:03:00]}  d5 {[%clk 0:02:59]} 2. Nf3 {[%clk 0:03:00]}  Nf6 {[%clk 0:02:59]} 3. c4 {[%clk 0:03:01]}  c6 {[%clk 0:02:59]} 4. g3 {[%clk 0:03:01]}  Bf5 {[%clk 0:02:56]} 5. Nc3 {[%clk 0:03:01]}  e6 {[%clk 0:02:56]} 6. Nh4 {[%clk 0:03:01]}  Bg4 {[%clk 0:02:50]} 7. h3 {[%clk 0:03:00]}  Bh5 {[%clk 0:02:50]} 8. g4 {[%clk 0:02:58]}  Bg6 {[%clk 0:02:50]} 9. Qb3 {[%clk 0:02:56]}  Qb6 {[%clk 0:02:50]} 10. Nxg6 {[%clk 0:02:55]}  hxg6 {[%clk 0:02:50]} 11. c5 {[%clk 0:02:56]}  Qc7 {[%clk 0:02:50]} 12. Bg2 {[%clk 0:02:49]}  Nbd7 {[%clk 0:02:50]} 13. Bg5 {[%clk 0:02:44]}  e5 {[%clk 0:02:44]} 14. e3 {[%clk 0:02:43]}  Be7 {[%clk 0:02:36]} 15. Qc2 {[%clk 0:02:39]}  Nf8 {[%clk 0:02:04]} 16. dxe5 {[%clk 0:02:28]}  Qxe5 {[%clk 0:02:04]} 17. Bf4 {[%clk 0:02:28]}  Qe6 {[%clk 0:02:04]} 18. Ne2 {[%clk 0:02:26]}  Qd7 {[%clk 0:02:03]} 19. Nd4 {[%clk 0:02:26]}  Ne6 {[%clk 0:02:03]} 20. Nxe6 {[%clk 0:02:27]}  Qxe6 {[%clk 0:02:04]} 21. O-O {[%clk 0:02:23]}  a5 {[%clk 0:02:00]} 22. b4 {[%clk 0:02:22]}  axb4 {[%clk 0:02:00]} 23. Rab1 {[%clk 0:02:19]}  Nd7 {[%clk 0:02:00]} 24. Rxb4 {[%clk 0:02:19]}  Nxc5 {[%clk 0:01:59]} 25. e4 {[%clk 0:02:16]}  dxe4 {[%clk 0:01:56]} 26. Be3 {[%clk 0:02:15]}  Rxa2 {[%clk 0:01:36]} 27. Qb1 {[%clk 0:02:14]}  f5 {[%clk 0:01:12]} 28. Rc1 {[%clk 0:02:01]}  Nd3 {[%clk 0:00:59]} 29. Rxb7 {[%clk 0:02:01]}  Nxc1 {[%clk 0:01:00]} 30. Rb8+ {[%clk 0:01:45]}  Kf7 {[%clk 0:00:51]} 31. Rxh8 {[%clk 0:01:42]}  Ne2+ {[%clk 0:00:52]} 32. Kh1 {[%clk 0:01:39]}  Qd5 {[%clk 0:00:20]} 33. Bf1 {[%clk 0:01:30]}  f4 {[%clk 0:00:13]} 34. Qb8 {[%clk 0:01:13]}  fxe3 {[%clk 0:00:13]} 35. Qe8+ {[%clk 0:00:49]}  Kf6 {[%clk 0:00:12]} 36. h4 {[%clk 0:00:47]}  Qe6 {[%clk 0:00:07]} 37. g5+ {[%clk 0:00:45]}  Ke5 {[%clk 0:00:08]} 38. Qb8+ {[%clk 0:00:42]}  Bd6 {[%clk 0:00:08]} 39. Qb7 {[%clk 0:00:17]}  exf2 {[%clk 0:00:07]} 40. Qxg7+ {[%clk 0:00:17]}  Kd5 {[%clk 0:00:07]} 41. Rd8 {[%clk 0:00:08]}  Ng3+ {[%clk 0:00:07]} 42. Kg2 {[%clk 0:00:07]}  Nxf1 {[%clk 0:00:08]} 43. Qc3 {[%clk 0:00:07]}  Qg4+ {[%clk 0:00:07]} 44. Kh1 {[%clk 0:00:03]}  Qg1# {[%clk 0:00:07]} 0-1


[Site "https://www.chess.com"]

[Event "Titled Tuesday Blitz June 28 Early 2022"]
[White "Goltsev, Dmitry"]
[Black "Guliev, Logman"]
[WhiteFideId "24176710"]
[BlackFideId "13400061"]
[WhiteElo "2258"]
[BlackElo "2128"]
[Result "1-0"]
[Round "01"]
[TimeControl "180+1"]
[Date "2022.06.28"]
[WhiteClock "0:00:07"]
[BlackClock "0:00:02"]

1. e4 {[%clk 0:02:28]}  c6 {[%clk 0:02:59]} 2. d4 {[%clk 0:02:28]}  d5 {[%clk 0:02:55]} 3. Nc3 {[%clk 0:02:29]}  dxe4 {[%clk 0:02:55]} 4. Nxe4 {[%clk 0:02:30]}  Bf5 {[%clk 0:02:54]} 5. Ng3 {[%clk 0:02:31]}  Bg6 {[%clk 0:02:55]} 6. Nh3 {[%clk 0:02:31]}  e6 {[%clk 0:02:52]} 7. Nf4 {[%clk 0:02:32]}  Bd6 {[%clk 0:02:53]} 8. c3 {[%clk 0:02:31]}  Nf6 {[%clk 0:02:53]} 9. h4 {[%clk 0:02:31]}  Bxf4 {[%clk 0:02:49]} 10. Bxf4 {[%clk 0:02:32]}  h6 {[%clk 0:02:49]} 11. Bd3 {[%clk 0:02:30]}  Bxd3 {[%clk 0:02:48]} 12. Qxd3 {[%clk 0:02:31]}  O-O {[%clk 0:02:47]} 13. f3 {[%clk 0:02:30]}  Nbd7 {[%clk 0:02:46]} 14. O-O-O {[%clk 0:02:30]}  Qa5 {[%clk 0:02:45]} 15. Kb1 {[%clk 0:02:29]}  c5 {[%clk 0:02:45]} 16. Ne4 {[%clk 0:02:29]}  cxd4 {[%clk 0:02:44]} 17. cxd4 {[%clk 0:02:27]}  Nd5 {[%clk 0:02:42]} 18. Bd2 {[%clk 0:02:27]}  Qb6 {[%clk 0:02:41]} 19. g4 {[%clk 0:02:27]}  Rac8 {[%clk 0:02:36]} 20. g5 {[%clk 0:02:25]}  h5 {[%clk 0:02:35]} 21. Rhg1 {[%clk 0:02:25]}  g6 {[%clk 0:02:35]} 22. Rg2 {[%clk 0:02:23]}  Rfd8 {[%clk 0:02:32]} 23. a3 {[%clk 0:02:10]}  Rc6 {[%clk 0:02:20]} 24. Ka2 {[%clk 0:02:09]}  Rdc8 {[%clk 0:02:19]} 25. Be3 {[%clk 0:02:01]}  Ne5 {[%clk 0:02:09]} 26. dxe5 {[%clk 0:01:35]}  Nxe3 {[%clk 0:02:09]} 27. Nf6+ {[%clk 0:01:33]}  Kg7 {[%clk 0:02:08]} 28. Rdd2 {[%clk 0:01:17]}  Nxg2 {[%clk 0:02:06]} 29. Rxg2 {[%clk 0:01:18]}  Qa5 {[%clk 0:01:52]} 30. f4 {[%clk 0:01:01]}  Rc1 {[%clk 0:01:46]} 31. Rd2 {[%clk 0:00:55]}  Qc5 {[%clk 0:01:41]} 32. Ne4 {[%clk 0:00:52]}  Qg1 {[%clk 0:01:34]} 33. Kb3 {[%clk 0:00:45]}  Re1 {[%clk 0:01:24]} 34. Nd6 {[%clk 0:00:41]}  Qb6+ {[%clk 0:00:55]} 35. Ka2 {[%clk 0:00:36]}  Rcc1 {[%clk 0:00:54]} 36. Qb5 {[%clk 0:00:33]}  Ra1+ {[%clk 0:00:52]} 37. Kb3 {[%clk 0:00:32]}  Re3+ {[%clk 0:00:48]} 38. Kb4 {[%clk 0:00:28]}  Qxb5+ {[%clk 0:00:32]} 39. Nxb5 {[%clk 0:00:25]}  Re4+ {[%clk 0:00:31]} 40. Kb3 {[%clk 0:00:22]}  Rxf4 {[%clk 0:00:27]} 41. Nd6 {[%clk 0:00:22]}  Rf3+ {[%clk 0:00:27]} 42. Ka4 {[%clk 0:00:21]}  Re1 {[%clk 0:00:23]} 43. Ne8+ {[%clk 0:00:19]}  Kf8 {[%clk 0:00:20]} 44. Nf6 {[%clk 0:00:18]}  Rxf6 {[%clk 0:00:16]} 45. exf6 {[%clk 0:00:19]}  Ke8 {[%clk 0:00:16]} 46. Kb5 {[%clk 0:00:15]}  Re5+ {[%clk 0:00:16]} 47. Kc4 {[%clk 0:00:14]}  Re4+ {[%clk 0:00:14]} 48. Kc5 {[%clk 0:00:13]}  Rxh4 {[%clk 0:00:15]} 49. Kd6 {[%clk 0:00:13]}  Rc4 {[%clk 0:00:13]} 50. b4 {[%clk 0:00:11]}  Rc8 {[%clk 0:00:08]} 51. Ke5 {[%clk 0:00:11]}  Rd8 {[%clk 0:00:07]} 52. Rc2 {[%clk 0:00:10]}  Rd5+ {[%clk 0:00:08]} 53. Ke4 {[%clk 0:00:10]}  Kd7 {[%clk 0:00:08]} 54. Rg2 {[%clk 0:00:07]}  b5 {[%clk 0:00:08]} 55. Kf4 {[%clk 0:00:05]}  Kd6 {[%clk 0:00:09]} 56. Rc2 {[%clk 0:00:04]}  Rd4+ {[%clk 0:00:08]} 57. Kf3 {[%clk 0:00:04]}  Ke5 {[%clk 0:00:07]} 58. Rc7 {[%clk 0:00:04]}  Kf5 {[%clk 0:00:07]} 59. Rxa7 {[%clk 0:00:05]}  Kxg5 {[%clk 0:00:08]} 60. Rxf7 {[%clk 0:00:05]}  Rf4+ {[%clk 0:00:08]} 61. Kg3 {[%clk 0:00:06]}  Rxf6 {[%clk 0:00:09]} 62. Re7 {[%clk 0:00:06]}  h4+ {[%clk 0:00:08]} 63. Kh3 {[%clk 0:00:06]}  Kh5 {[%clk 0:00:07]} 64. Kg2 {[%clk 0:00:06]}  Kg4 {[%clk 0:00:07]} 65. Rc7 {[%clk 0:00:07]}  Rf5 {[%clk 0:00:06]} 66. Rc5 {[%clk 0:00:07]}  h3+ {[%clk 0:00:03]} 67. Kh2 {[%clk 0:00:07]}  e5 {[%clk 0:00:03]} 68. Rc2 {[%clk 0:00:07]}  g5 {[%clk 0:00:02]} 69. Re2 {[%clk 0:00:08]}  Kh4 {[%clk 0:00:02]} 70. Re3 {[%clk 0:00:04]}  g4 {[%clk 0:00:03]} 71. Re4 {[%clk 0:00:05]}  Rf4 {[%clk 0:00:03]} 72. Kg1 {[%clk 0:00:06]}  Rf2 {[%clk 0:00:04]} 73. Kxf2 {[%clk 0:00:06]}  h2 {[%clk 0:00:02]} 74. Kg2 {[%clk 0:00:07]} 1-0


[Site "https://www.chess.com"]

[Event "Titled Tuesday Blitz June 28 Early 2022"]
[White "Golubev, Mikhail"]
[Black "So, Wesley"]
[WhiteFideId "14100983"]
[BlackFideId "5202213"]
[WhiteElo "2374"]
[BlackElo "2742"]
[Result "0-1"]
[Round "01"]
[TimeControl "180+1"]
[Date "2022.06.28"]
[WhiteClock "0:00:02"]
[BlackClock "0:00:05"]

1. e4 {[%clk 0:03:00]}  c5 {[%clk 0:02:59]} 2. Nf3 {[%clk 0:03:00]}  d6 {[%clk 0:02:58]} 3. d4 {[%clk 0:03:00]}  cxd4 {[%clk 0:02:59]} 4. Nxd4 {[%clk 0:03:00]}  Nf6 {[%clk 0:03:00]} 5. Nc3 {[%clk 0:03:00]}  a6 {[%clk 0:03:00]} 6. Bc4 {[%clk 0:03:00]}  e6 {[%clk 0:02:59]} 7. O-O {[%clk 0:02:59]}  Be7 {[%clk 0:02:58]} 8. Bb3 {[%clk 0:02:59]}  O-O {[%clk 0:02:57]} 9. f4 {[%clk 0:02:59]}  b5 {[%clk 0:02:57]} 10. e5 {[%clk 0:03:00]}  dxe5 {[%clk 0:02:56]} 11. fxe5 {[%clk 0:03:01]}  Nfd7 {[%clk 0:02:41]} 12. Be3 {[%clk 0:03:00]}  Nxe5 {[%clk 0:02:37]} 13. Qh5 {[%clk 0:02:59]}  Nbc6 {[%clk 0:02:28]} 14. Rad1 {[%clk 0:02:56]}  Qc7 {[%clk 0:02:17]} 15. Nxc6 {[%clk 0:02:51]}  Nxc6 {[%clk 0:02:18]} 16. Bf4 {[%clk 0:02:39]}  Qb6+ {[%clk 0:01:58]} 17. Kh1 {[%clk 0:02:39]}  Na5 {[%clk 0:01:48]} 18. Rd3 {[%clk 0:02:12]}  Qc5 {[%clk 0:01:35]} 19. Bd5 {[%clk 0:00:44]}  exd5 {[%clk 0:01:19]} 20. Nxd5 {[%clk 0:00:45]}  Be6 {[%clk 0:01:18]} 21. b4 {[%clk 0:00:40]}  Qa7 {[%clk 0:01:13]} 22. Nxe7+ {[%clk 0:00:36]}  Qxe7 {[%clk 0:01:14]} 23. Bd6 {[%clk 0:00:35]}  Qb7 {[%clk 0:00:56]} 24. Bxf8 {[%clk 0:00:35]}  Rxf8 {[%clk 0:00:57]} 25. bxa5 {[%clk 0:00:34]}  Qc7 {[%clk 0:00:57]} 26. Rg3 {[%clk 0:00:26]}  Qxc2 {[%clk 0:00:52]} 27. Qe5 {[%clk 0:00:25]}  g6 {[%clk 0:00:50]} 28. h4 {[%clk 0:00:25]}  Qa4 {[%clk 0:00:38]} 29. h5 {[%clk 0:00:21]}  Qc4 {[%clk 0:00:31]} 30. Rf6 {[%clk 0:00:16]}  Rd8 {[%clk 0:00:23]} 31. hxg6 {[%clk 0:00:13]}  hxg6 {[%clk 0:00:08]} 32. Rgxg6+ {[%clk 0:00:13]}  Kf8 {[%clk 0:00:08]} 33. Rxf7+ {[%clk 0:00:04]}  Bxf7 {[%clk 0:00:06]} 34. Qh8+ {[%clk 0:00:04]}  Ke7 {[%clk 0:00:06]} 35. Qe5+ {[%clk 0:00:04]}  Kf8 {[%clk 0:00:06]} 36. Qh8+ {[%clk 0:00:03]}  Ke7 {[%clk 0:00:07]} 37. Qe5+ {[%clk 0:00:03]}  Be6 {[%clk 0:00:07]} 38. Rg7+ {[%clk 0:00:03]}  Ke8 {[%clk 0:00:07]} 39. Qh5+ {[%clk 0:00:03]}  Bf7 {[%clk 0:00:04]} 40. Qh8+ {[%clk 0:00:02]}  Ke7 {[%clk 0:00:05]} 0-1


[Site "https://www.chess.com"]

[Event "Titled Tuesday Blitz June 28 Early 2022"]
[White "Gracia Alvarez, Gerardo Antonio"]
[Black "Mosutha, Thuso"]
[WhiteFideId "5109124"]
[BlackFideId "11302550"]
[WhiteElo "2139"]
[BlackElo "2028"]
[Result "1-0"]
[Round "01"]
[TimeControl "180+1"]
[Date "2022.06.28"]
[WhiteClock "0:00:03"]
[BlackClock "0:00:09"]

1. e4 {[%clk 0:03:00]}  c5 {[%clk 0:02:51]} 2. Nc3 {[%clk 0:02:59]}  d6 {[%clk 0:02:49]} 3. d4 {[%clk 0:02:59]}  cxd4 {[%clk 0:02:48]} 4. Qxd4 {[%clk 0:03:00]}  Nf6 {[%clk 0:02:48]} 5. b3 {[%clk 0:02:59]}  a6 {[%clk 0:02:48]} 6. Bb2 {[%clk 0:02:59]}  g6 {[%clk 0:02:47]} 7. O-O-O {[%clk 0:02:47]}  Bg7 {[%clk 0:02:44]} 8. Qd2 {[%clk 0:02:46]}  Nc6 {[%clk 0:02:43]} 9. f3 {[%clk 0:02:30]}  O-O {[%clk 0:02:40]} 10. g4 {[%clk 0:02:26]}  Qa5 {[%clk 0:02:39]} 11. Kb1 {[%clk 0:02:24]}  b5 {[%clk 0:02:32]} 12. h4 {[%clk 0:02:20]}  h5 {[%clk 0:02:27]} 13. g5 {[%clk 0:02:16]}  Nd7 {[%clk 0:02:25]} 14. Nd5 {[%clk 0:01:54]}  Qd8 {[%clk 0:02:17]} 15. Bxg7 {[%clk 0:01:50]}  Kxg7 {[%clk 0:02:18]} 16. Qc3+ {[%clk 0:01:50]}  Nce5 {[%clk 0:02:08]} 17. f4 {[%clk 0:01:50]}  e6 {[%clk 0:02:02]} 18. Ne3 {[%clk 0:01:41]}  b4 {[%clk 0:02:03]} 19. Qb2 {[%clk 0:01:39]}  Qb6 {[%clk 0:02:03]} 20. Nc4 {[%clk 0:01:35]}  Qc6 {[%clk 0:01:55]} 21. Bg2 {[%clk 0:01:30]}  Bb7 {[%clk 0:01:49]} 22. Rxd6 {[%clk 0:01:11]}  Qc7 {[%clk 0:01:42]} 23. Nxe5 {[%clk 0:00:59]}  Nxe5 {[%clk 0:01:42]} 24. Qxe5+ {[%clk 0:00:57]}  Kg8 {[%clk 0:01:43]} 25. Rxe6 {[%clk 0:00:52]}  Qd7 {[%clk 0:01:39]} 26. Rd6 {[%clk 0:00:50]}  Qg4 {[%clk 0:01:39]} 27. Bf3 {[%clk 0:00:39]}  Qg3 {[%clk 0:01:38]} 28. Qd4 {[%clk 0:00:23]}  Rac8 {[%clk 0:01:32]} 29. Rh3 {[%clk 0:00:18]}  Qe1+ {[%clk 0:01:29]} 30. Qd1 {[%clk 0:00:18]}  Qe3 {[%clk 0:01:21]} 31. Ne2 {[%clk 0:00:15]}  Bxe4 {[%clk 0:01:18]} 32. Bxe4 {[%clk 0:00:10]}  Qxh3 {[%clk 0:01:17]} 33. Bxg6 {[%clk 0:00:10]}  fxg6 {[%clk 0:01:14]} 34. Rxg6+ {[%clk 0:00:10]}  Kf7 {[%clk 0:01:05]} 35. Rf6+ {[%clk 0:00:08]}  Kg7 {[%clk 0:01:05]} 36. Qd4 {[%clk 0:00:06]}  Qf1+ {[%clk 0:00:32]} 37. Nc1 {[%clk 0:00:06]}  Qg2 {[%clk 0:00:11]} 38. Rh6+ {[%clk 0:00:04]}  Kf7 {[%clk 0:00:11]} 39. Qd7+ {[%clk 0:00:03]}  Kg8 {[%clk 0:00:09]} 40. Qh7# {[%clk 0:00:03]} 1-0


[Site "https://www.chess.com"]

[Event "Titled Tuesday Blitz June 28 Early 2022"]
[White "Guz, Ari"]
[Black "Mogirzan, Matei-Valeriu"]
[WhiteFideId "2825759"]
[BlackFideId "1257455"]
[WhiteElo "1913"]
[BlackElo "1733"]
[Result "1-0"]
[Round "01"]
[TimeControl "180+1"]
[Date "2022.06.28"]
[WhiteClock "0:00:34"]
[BlackClock "0:00:01"]

1. e4 {[%clk 0:02:58]}  e5 {[%clk 0:02:47]} 2. Nf3 {[%clk 0:02:58]}  Nf6 {[%clk 0:02:47]} 3. Nc3 {[%clk 0:02:55]}  Nc6 {[%clk 0:02:45]} 4. Bc4 {[%clk 0:02:50]}  Bc5 {[%clk 0:02:40]} 5. O-O {[%clk 0:02:44]}  O-O {[%clk 0:02:28]} 6. d3 {[%clk 0:02:36]}  d6 {[%clk 0:02:16]} 7. Bg5 {[%clk 0:02:30]}  h6 {[%clk 0:02:15]} 8. Bh4 {[%clk 0:02:26]}  Bg4 {[%clk 0:02:01]} 9. h3 {[%clk 0:02:13]}  Bxf3 {[%clk 0:01:46]} 10. Qxf3 {[%clk 0:02:13]}  g5 {[%clk 0:01:43]} 11. Bg3 {[%clk 0:02:09]}  Nd4 {[%clk 0:01:38]} 12. Qd1 {[%clk 0:02:09]}  c6 {[%clk 0:01:33]} 13. a4 {[%clk 0:01:55]}  a5 {[%clk 0:01:16]} 14. Kh2 {[%clk 0:01:46]}  Qb6 {[%clk 0:00:59]} 15. Rb1 {[%clk 0:01:35]}  Ne6 {[%clk 0:00:49]} 16. Ne2 {[%clk 0:01:24]}  h5 {[%clk 0:00:35]} 17. h4 {[%clk 0:01:20]}  Ng4+ {[%clk 0:00:30]} 18. Kg1 {[%clk 0:01:20]}  Rad8 {[%clk 0:00:15]} 19. Nc3 {[%clk 0:01:02]}  Bd4 {[%clk 0:00:07]} 20. Qf3 {[%clk 0:00:59]}  Nf4 {[%clk 0:00:05]} 21. hxg5 {[%clk 0:00:58]}  d5 {[%clk 0:00:04]} 22. exd5 {[%clk 0:00:54]}  cxd5 {[%clk 0:00:05]} 23. Bb3 {[%clk 0:00:54]}  f5 {[%clk 0:00:02]} 24. Bxf4 {[%clk 0:00:51]}  exf4 {[%clk 0:00:02]} 25. Nxd5 {[%clk 0:00:52]}  Rxd5 {[%clk 0:00:01]} 26. Qxd5+ {[%clk 0:00:49]}  Kh8 {[%clk 0:00:01]} 27. Qf3 {[%clk 0:00:47]}  h4 {[%clk 0:00:01]} 28. c3 {[%clk 0:00:46]}  Bc5 {[%clk 0:00:01]} 29. d4 {[%clk 0:00:46]}  Be7 {[%clk 0:00:02]} 30. Bc2 {[%clk 0:00:47]}  Bxg5 {[%clk 0:00:02]} 31. Bxf5 {[%clk 0:00:47]}  Rxf5 {[%clk 0:00:02]} 32. Qxg4 {[%clk 0:00:47]}  Qf6 {[%clk 0:00:02]} 33. f3 {[%clk 0:00:44]}  h3 {[%clk 0:00:02]} 34. Qxh3+ {[%clk 0:00:43]}  Kg7 {[%clk 0:00:02]} 35. Rbe1 {[%clk 0:00:42]}  Bh6 {[%clk 0:00:02]} 36. Re4 {[%clk 0:00:39]}  Rg5 {[%clk 0:00:03]} 37. Rfe1 {[%clk 0:00:38]}  Rg3 {[%clk 0:00:03]} 38. Re7+ {[%clk 0:00:39]}  Kg8 {[%clk 0:00:02]} 39. Qe6+ {[%clk 0:00:36]}  Qxe6 {[%clk 0:00:02]} 40. R1xe6 {[%clk 0:00:36]}  Bg7 {[%clk 0:00:02]} 41. Rxb7 {[%clk 0:00:34]}  Rg5 {[%clk 0:00:02]} 42. Re8+ {[%clk 0:00:34]}  Kh7 {[%clk 0:00:02]} 43. Ree7 {[%clk 0:00:34]}  Kh6 {[%clk 0:00:02]} 44. Rxg7 {[%clk 0:00:35]}  Rxg2+ {[%clk 0:00:01]} 45. Rxg2 {[%clk 0:00:34]} 1-0


[Site "https://www.chess.com"]